Workbook

Sheet Contents
A1: Detect Cancer Early - Staging Data by Deprivation
A3: In order to view the tables to full effect, the macros will need to be enabled. To do this, select options – enable this content.
A5: The following tables and figures present the Detect Cancer Early staging data by deprivation category for Baseline (2010 & 2011) to Year 8 (2018 & 2019). The residence of the patient on the date of diagnosis is assigned a deprivation category 1 to 5 (1 being the most deprived, 5 the least deprived) based on the Scottish Index of Mutiple Deprivation (SIMD).
B9: Time period: | C9: 01 January 2010 - 31 December 2019.
B10: Source: | C10: PHS Detect Cancer Early data collected from local National Prospective Cancer Audit data sets
B11: Extract date: | C11: 2020-10-10
A13: Use the hyperlinks in the lists below to nativigate to the required table or figure;
A15: List of Tables and Figures
A17: Table 1 - Breast, colorectal and lung cancer (combined)
A18: Table 1: Number and percentage of patients in Scotland diagnosed with breast, colorectal and lung cancer by stage and deprivation category for 2010-2011 to 2018-2019 combined.
A20: Figure 1 - Deprivation
A21: Figure 1: Proportion of patients in Scotland diagnosed with breast cancer by stage and deprivation category for 2010-2011 to 2018-2019 combined.
A23: Figure 2 - Trend in percentage change of stage 1
A24: Figure 2: Trend in stage 1 percentage change from baseline for each stage for breast, colorectal and lung cancer in Scotland by deprivation category.
A26: Notes
A28: 1) Cancer staging is the process of determining the extent to which a cancer has developed and spread. For the majority of patients with cancer it is common practice to assign a number from 1 to 4 to a cancer, with 1 indicating the cancer is confined to the original organ in which it occurred and 4 being a cancer which has spread beyond the original organ and local lymph glands (regional lymph nodes). Patients diagnosed with stage 1 disease tend to have better outcomes and longer survival compared to patients diagnosed with stage 4 disease.
A33: 2) The following ICD-10 (International Classification of Diseases, 10th Revision) codes have been used: Breast: ICD-10 C50 Colorectal: ICD-10 C18-C20 Lung: ICD-10 C33-C34
A38: 3) Deprivation categories are the Scottish Index of Mutiple Deprivation (SIMD) 2012 quintiles. Refer to www.gov.scot/Topics/Statistics/SIMD for more information.
A40: 4) The total figures presented here may differ slightly to those in the main DCE Staging Tables (see link below). There are a small number of patients where the deprivation category is not available in the DCE datamart due to technical issues.
A42: http://www.isdscotland.scot.nhs.uk/Health-Topics/Cancer/Publications/2020-11-24/DCE Staging Trends.xlsx

Sheet Table 1
A1: Detect Cancer Early - Trend Staging Data
A2: ="Table 1: Number and percentage of patients in Scotland diagnosed with "&(VLOOKUP($T$2,Lookups!$A$28:$B$31,2,0))&" - by stage and deprivation category for "&(VLOOKUP($T$3,Lookups!$A$1:$B$9,2,0))&" combined" -> Table 1: Number and percentage of patients in Scotland diagnosed with Breast, Colorectal & Lung combined - by stage and deprivation category for Year 8 (2018 & 2019) combined | T2: 4
T3: 9
A4: Please select which combined years you require: | T4: =CONCATENATE(T2,T3) -> 49
A6: Please select which cancer type you require :
A9: Deprivation Category | C9: Stage 1 | F9: Stage 2 | I9: Stage 3 | L9: Stage 4 | O9: Stage Not Known | R9: Total
C10: Number | D10: % | F10: Number | G10: % | I10: Number | J10: % | L10: Number | M10: % | O10: Number | P10: % | R10: Number | S10: %
A12: All categories | C12: =VLOOKUP("6"&$T$4,'Data DCE'!$A$1:$M$217,2,FALSE) -> 6480 | D12: =VLOOKUP("6"&$T$4,'Data DCE'!$A$1:$M$217,3,FALSE) -> 25.62074964 | F12: =VLOOKUP("6"&$T$4,'Data DCE'!$A$1:$M$217,4,FALSE) -> 6435 | G12: =VLOOKUP("6"&$T$4,'Data DCE'!$A$1:$M$217,5,FALSE) -> 25.44282777 | I12: =VLOOKUP("6"&$T$4,'Data DCE'!$A$1:$M$217,6,FALSE) -> 4358 | J12: =VLOOKUP("6"&$T$4,'Data DCE'!$A$1:$M$217,7,FALSE) -> 17.2307449 | L12: =VLOOKUP("6"&$T$4,'Data DCE'!$A$1:$M$217,8,FALSE) -> 6415 | M12: =VLOOKUP("6"&$T$4,'Data DCE'!$A$1:$M$217,9,FALSE) -> 25.36375138 | O12: =VLOOKUP("6"&$T$4,'Data DCE'!$A$1:$M$217,10,FALSE) -> 1604 | P12: =VLOOKUP("6"&$T$4,'Data DCE'!$A$1:$M$217,11,FALSE) -> 6.341926301 | R12: =VLOOKUP("6"&$T$4,'Data DCE'!$A$1:$M$217,12,FALSE) -> 25292 | S12: =VLOOKUP("6"&$T$4,'Data DCE'!$A$1:$M$217,13,FALSE) -> 100
A14: 1=most deprived | C14: =VLOOKUP("1"&$T$4,'Data DCE'!$A$1:$M$217,2,FALSE) -> 1347 | D14: =VLOOKUP("1"&$T$4,'Data DCE'!$A$1:$M$217,3,FALSE) -> 23.79018015 | F14: =VLOOKUP("1"&$T$4,'Data DCE'!$A$1:$M$217,4,FALSE) -> 1285 | G14: =VLOOKUP("1"&$T$4,'Data DCE'!$A$1:$M$217,5,FALSE) -> 22.69516072 | I14: =VLOOKUP("1"&$T$4,'Data DCE'!$A$1:$M$217,6,FALSE) -> 1093 | J14: =VLOOKUP("1"&$T$4,'Data DCE'!$A$1:$M$217,7,FALSE) -> 19.30413282 | L14: =VLOOKUP("1"&$T$4,'Data DCE'!$A$1:$M$217,8,FALSE) -> 1605 | M14: =VLOOKUP("1"&$T$4,'Data DCE'!$A$1:$M$217,9,FALSE) -> 28.3468739 | O14: =VLOOKUP("1"&$T$4,'Data DCE'!$A$1:$M$217,10,FALSE) -> 332 | P14: =VLOOKUP("1"&$T$4,'Data DCE'!$A$1:$M$217,11,FALSE) -> 5.86365242 | R14: =VLOOKUP("1"&$T$4,'Data DCE'!$A$1:$M$217,12,FALSE) -> 5662 | S14: =VLOOKUP("1"&$T$4,'Data DCE'!$A$1:$M$217,13,FALSE) -> 100
A15: 2 | C15: =VLOOKUP("2"&$T$4,'Data DCE'!$A$1:$M$217,2,FALSE) -> 1297 | D15: =VLOOKUP("2"&$T$4,'Data DCE'!$A$1:$M$217,3,FALSE) -> 24.19776119 | F15: =VLOOKUP("2"&$T$4,'Data DCE'!$A$1:$M$217,4,FALSE) -> 1316 | G15: =VLOOKUP("2"&$T$4,'Data DCE'!$A$1:$M$217,5,FALSE) -> 24.55223881 | I15: =VLOOKUP("2"&$T$4,'Data DCE'!$A$1:$M$217,6,FALSE) -> 903 | J15: =VLOOKUP("2"&$T$4,'Data DCE'!$A$1:$M$217,7,FALSE) -> 16.84701493 | L15: =VLOOKUP("2"&$T$4,'Data DCE'!$A$1:$M$217,8,FALSE) -> 1455 | M15: =VLOOKUP("2"&$T$4,'Data DCE'!$A$1:$M$217,9,FALSE) -> 27.14552239 | O15: =VLOOKUP("2"&$T$4,'Data DCE'!$A$1:$M$217,10,FALSE) -> 389 | P15: =VLOOKUP("2"&$T$4,'Data DCE'!$A$1:$M$217,11,FALSE) -> 7.257462687 | R15: =VLOOKUP("2"&$T$4,'Data DCE'!$A$1:$M$217,12,FALSE) -> 5360 | S15: =VLOOKUP("2"&$T$4,'Data DCE'!$A$1:$M$217,13,FALSE) -> 100
A16: 3 | C16: =VLOOKUP("3"&$T$4,'Data DCE'!$A$1:$M$217,2,FALSE) -> 1244 | D16: =VLOOKUP("3"&$T$4,'Data DCE'!$A$1:$M$217,3,FALSE) -> 24.82043097 | F16: =VLOOKUP("3"&$T$4,'Data DCE'!$A$1:$M$217,4,FALSE) -> 1276 | G16: =VLOOKUP("3"&$T$4,'Data DCE'!$A$1:$M$217,5,FALSE) -> 25.45889864 | I16: =VLOOKUP("3"&$T$4,'Data DCE'!$A$1:$M$217,6,FALSE) -> 897 | J16: =VLOOKUP("3"&$T$4,'Data DCE'!$A$1:$M$217,7,FALSE) -> 17.89704709 | L16: =VLOOKUP("3"&$T$4,'Data DCE'!$A$1:$M$217,8,FALSE) -> 1269 | M16: =VLOOKUP("3"&$T$4,'Data DCE'!$A$1:$M$217,9,FALSE) -> 25.31923384 | O16: =VLOOKUP("3"&$T$4,'Data DCE'!$A$1:$M$217,10,FALSE) -> 326 | P16: =VLOOKUP("3"&$T$4,'Data DCE'!$A$1:$M$217,11,FALSE) -> 6.504389465 | R16: =VLOOKUP("3"&$T$4,'Data DCE'!$A$1:$M$217,12,FALSE) -> 5012 | S16: =VLOOKUP("3"&$T$4,'Data DCE'!$A$1:$M$217,13,FALSE) -> 100
A17: 4 | C17: =VLOOKUP("4"&$T$4,'Data DCE'!$A$1:$M$217,2,FALSE) -> 1288 | D17: =VLOOKUP("4"&$T$4,'Data DCE'!$A$1:$M$217,3,FALSE) -> 27.13864307 | F17: =VLOOKUP("4"&$T$4,'Data DCE'!$A$1:$M$217,4,FALSE) -> 1273 | G17: =VLOOKUP("4"&$T$4,'Data DCE'!$A$1:$M$217,5,FALSE) -> 26.82258744 | I17: =VLOOKUP("4"&$T$4,'Data DCE'!$A$1:$M$217,6,FALSE) -> 765 | J17: =VLOOKUP("4"&$T$4,'Data DCE'!$A$1:$M$217,7,FALSE) -> 16.11883692 | L17: =VLOOKUP("4"&$T$4,'Data DCE'!$A$1:$M$217,8,FALSE) -> 1124 | M17: =VLOOKUP("4"&$T$4,'Data DCE'!$A$1:$M$217,9,FALSE) -> 23.68310156 | O17: =VLOOKUP("4"&$T$4,'Data DCE'!$A$1:$M$217,10,FALSE) -> 296 | P17: =VLOOKUP("4"&$T$4,'Data DCE'!$A$1:$M$217,11,FALSE) -> 6.236831016 | R17: =VLOOKUP("4"&$T$4,'Data DCE'!$A$1:$M$217,12,FALSE) -> 4746 | S17: =VLOOKUP("4"&$T$4,'Data DCE'!$A$1:$M$217,13,FALSE) -> 100
A18: 5=least deprived | C18: =VLOOKUP("5"&$T$4,'Data DCE'!$A$1:$M$217,2,FALSE) -> 1304 | D18: =VLOOKUP("5"&$T$4,'Data DCE'!$A$1:$M$217,3,FALSE) -> 28.90070922 | F18: =VLOOKUP("5"&$T$4,'Data DCE'!$A$1:$M$217,4,FALSE) -> 1285 | G18: =VLOOKUP("5"&$T$4,'Data DCE'!$A$1:$M$217,5,FALSE) -> 28.47960993 | I18: =VLOOKUP("5"&$T$4,'Data DCE'!$A$1:$M$217,6,FALSE) -> 700 | J18: =VLOOKUP("5"&$T$4,'Data DCE'!$A$1:$M$217,7,FALSE) -> 15.5141844 | L18: =VLOOKUP("5"&$T$4,'Data DCE'!$A$1:$M$217,8,FALSE) -> 962 | M18: =VLOOKUP("5"&$T$4,'Data DCE'!$A$1:$M$217,9,FALSE) -> 21.32092199 | O18: =VLOOKUP("5"&$T$4,'Data DCE'!$A$1:$M$217,10,FALSE) -> 261 | P18: =VLOOKUP("5"&$T$4,'Data DCE'!$A$1:$M$217,11,FALSE) -> 5.784574468 | R18: =VLOOKUP("5"&$T$4,'Data DCE'!$A$1:$M$217,12,FALSE) -> 4512 | S18: =VLOOKUP("5"&$T$4,'Data DCE'!$A$1:$M$217,13,FALSE) -> 100
A20: Source: PHS Detect Cancer Early data.
A22: Notes:
A23: 1. Patients diagnosed from 01 January 2010 - 31 December 2019 as at 20 October 2020.
A24: 2. There has been an increase in NHS Grampian unknown stage for lung cancer for 2017. This is due to them moving to using the updated staging classification TNM8 a year early.
A25: 3. The deprivation category is mapped on by postcode. Cases with missing or invalid postcodes are excluded from this table.

Sheet Fig 1
A1: Detect Cancer Early - Staging Data by deprivation | R1: back to contents
A3: ="Figure 1: Proportion of patients in Scotland diagnosed with ("&(VLOOKUP('Table 1'!T2,Lookups!$A$28:$B$31,2,0))&") - by stage and deprivation category for "&(VLOOKUP('Table 1'!T3,Lookups!$A$1:$B$9,2,0))&" combined" -> Figure 1: Proportion of patients in Scotland diagnosed with (Breast, Colorectal & Lung combined) - by stage and deprivation category for Year 8 (2018 & 2019) combined
A48: Source: PHS Detect Cancer Early data.
A50: Notes:
A51: 1. Patients diagnosed from 01 January 2010 - 31 December 2019 as at 20 October 2020.

Sheet data2 (hidden)
A1: SIMD
A2: 1=most deprived | B2: Baseline | C2: 20.24407753 | I2: 1=most deprived | J2: Baseline | K2: 0
B3: Year 1 | C3: 21.08855443 | J3: Year 1 | K3: =(C3-C$2)/C$2 -> 0.04171476304
B4: Year 2 | C4: 22.01978136 | J4: Year 2 | K4: =(C4-C$2)/C$2 -> 0.08771473191
B5: Year 3 | C5: 22.59182259 | J5: Year 3 | K5: 0.1159719458
B6: Year 4 | C6: 23.36984872 | J6: Year 4 | K6: 0.1544042294
B7: Year 5 | C7: 23.73774065 | J7: Year 5 | K7: 0.1725770468
B8: Year 6 | C8: 22.6083707 | J8: Year 6 | K8: 0.1167893755
B9: Year 7 | C9: 22.57764553 | J9: Year 7 | K9: =(C9-C$2)/C$2 -> 0.115271639
B10: Year 8 | C10: 23.79018015 | J10: Year 8 | K10: =(C10-C$2)/C$2 -> 0.1751674095
A11: 2 | B11: Baseline | D11: 21.66256391 | I11: 2 | J11: Baseline | L11: 0
B12: Year 1 | D12: 23.24423963 | J12: Year 1 | L12: =(D12-D$11)/D$11 -> 0.07301424382
B13: Year 2 | D13: 22.59445375 | J13: Year 2 | L13: 0.04301844628
B14: Year 3 | D14: 22.51815981 | J14: Year 3 | L14: 0.03949652043
B15: Year 4 | D15: 23.49809886 | J15: Year 4 | L15: 0.08473304262
B16: Year 5 | D16: 23.73043146 | J16: Year 5 | L16: 0.09545811672
B17: Year 6 | D17: 23.39104253 | J17: Year 6 | L17: 0.07979104542
B18: Year 7 | D18: 24.11720511 | J18: Year 7 | L18: =(D18-D$11)/D$11 -> 0.113312589
B19: Year 8 | D19: 24.19776119 | J19: Year 8 | L19: =(D19-D$11)/D$11 -> 0.1170312663
A20: 3 | B20: Baseline | E20: 24.19837537 | I20: 3 | J20: Baseline | M20: 0
B21: Year 1 | E21: 24.26393819 | J21: Year 1 | M21: =(E21-E$20)/E$20 -> 0.002709389229
B22: Year 2 | E22: 24.91680532 | J22: Year 2 | M22: 0.02968918116
B23: Year 3 | E23: 25.32921811 | J23: Year 3 | M23: 0.04673217584
B24: Year 4 | E24: 24.65559157 | J24: Year 4 | M24: 0.01889449977
B25: Year 5 | E25: 25.44220485 | J25: Year 5 | M25: 0.05140136313
B26: Year 6 | E26: 25.71964956 | J26: Year 6 | M26: 0.0628667902
B27: Year 7 | E27: 25.28641571 | J27: Year 7 | M27: =(E27-E$20)/E$20 -> 0.04496336308
B28: Year 8 | E28: 24.82043097 | J28: Year 8 | M28: =(E28-E$20)/E$20 -> 0.02570650227
A29: 4 | B29: Baseline | F29: 25.35852493 | I29: 4 | J29: Baseline | N29: 0
B30: Year 1 | F30: 26.1049423 | J30: Year 1 | N30: =(F30-F$29)/F$29 -> 0.02943457396
B31: Year 2 | F31: 26.37554585 | J31: Year 2 | N31: 0.04010568156
B32: Year 3 | F32: 27.28648649 | J32: Year 3 | N32: 0.07602814304
B33: Year 4 | F33: 26.61588683 | J33: Year 4 | N33: 0.04958340089
B34: Year 5 | F34: 26.74677348 | J34: Year 5 | N34: 0.05474484631
B35: Year 6 | F35: 27.23675533 | J35: Year 6 | N35: 0.07406702126
B36: Year 7 | F36: 27.14864577 | J36: Year 7 | N36: 0.07059246726
B37: Year 8 | F37: 27.13864307 | J37: Year 8 | N37: 0.07019801613
A38: 5=least deprived | B38: Baseline | G38: 26.66497204 | I38: 5=least deprived | J38: Baseline | O38: 0
B39: Year 1 | G39: 27.44565217 | J39: Year 1 | O39: =(G39-G$38)/G$38 -> 0.02927736561
B40: Year 2 | G40: 28.16630618 | J40: Year 2 | O40: 0.05630360818
B41: Year 3 | G41: 28.28379674 | J41: Year 3 | O41: 0.06070978433
B42: Year 4 | G42: 29.29981203 | J42: Year 4 | O42: 0.09881277909
B43: Year 5 | G43: 28.41735053 | J43: Year 5 | O43: 0.06571836964
B44: Year 6 | G44: 28.17359016 | J44: Year 6 | O44: 0.05657677493
B45: Year 7 | G45: 29.12014292 | J45: Year 7 | O45: 0.0920747593
B46: Year 8 | G46: 28.90070922 | J46: Year 8 | O46: 0.08384547255

Sheet Fig 2
A1: ="Detect Cancer Early - Stage 1 data by deprivation" -> Detect Cancer Early - Stage 1 data by deprivation | R1: back to contents
A3: ="Figure 2: Trend in stage 1 percentage change from baseline for each stage for breast, colorectal and lung cancer in Scotland by deprivation category." -> Figure 2: Trend in stage 1 percentage change from baseline for each stage for breast, colorectal and lung cancer in Scotland by deprivation category.
A48: Source: PHS Detect Cancer Early data.
A50: Notes:
A51: 1) Data for combined calendar years: Baseline (2010 & 2011); Year 1 (2011 & 2012); Year 2 (2012 & 2013); Year 3 (2013 & 2014); Year 4 (2014 & 2015); Year 5 (2015 & 2016); Year 6 (2016 & 2017); Year 7 (2017 & 2018) & Year 8 (2018 & 2019).
A52: 2) Percentage change (% change) is the relative percentage change. More specifically this is the difference in the stage 1 percentage between the baseline and the particular year, relative to the baseline and expressed as a percentage.

Sheet Lookups (hidden)
A1: 1 | B1: Baseline (2010 & 2011)
A2: 2 | B2: Year 1 (2011 & 2012)
A3: 3 | B3: Year 2 (2012 & 2013)
A4: 4 | B4: Year 3 (2013 & 2014)
A5: 5 | B5: Year 4 (2014 & 2015)
A6: 6 | B6: Year 5 (2015 & 2016)
A7: 7 | B7: Year 6 (2016 & 2017)
A8: 8 | B8: Year 7 (2017 & 2018)
A9: 9 | B9: Year 8 (2018 & 2019)
A28: 4 | B28: Breast, Colorectal & Lung combined
A29: 1 | B29: Breast
A30: 2 | B30: Colorectal
A31: 3 | B31: Lung
A33: 1 | B33: Stage 1
A34: 2 | B34: Stage 2
A35: 3 | B35: Stage 3
A36: 4 | B36: Stage 4
A37: 5 | B37: Stage Not Known

Sheet Data DCE (hidden)
A1: Lookup Code | B1: Stage 1 | C1: % | D1: Stage 2 | E1: % | F1: Stage 3 | G1: % | H1: Stage 4 | I1: % | J1: Stage Not Known | K1: % | L1: Total | M1: %
A2: 111 | B2: 530 | C2: 35.47523427 | D2: 675 | E2: 45.18072289 | F2: 119 | G2: 7.96519411 | H2: 112 | I2: 7.49665328 | J2: 58 | K2: 3.882195448 | L2: 1494 | M2: 100
A3: 112 | B3: 552 | C3: 37.14670256 | D3: 686 | E3: 46.16419919 | F3: 104 | G3: 6.998654105 | H3: 107 | I3: 7.200538358 | J3: 37 | K3: 2.489905787 | L3: 1486 | M3: 100
A4: 113 | B4: 572 | C4: 37.26384365 | D4: 701 | E4: 45.66775244 | F4: 133 | G4: 8.664495114 | H4: 97 | I4: 6.319218241 | J4: 32 | K4: 2.084690554 | L4: 1535 | M4: 100
A5: 114 | B5: 561 | C5: 37.07865169 | D5: 699 | E5: 46.19960344 | F5: 142 | G5: 9.385327165 | H5: 91 | I5: 6.014540648 | J5: 20 | K5: 1.321877065 | L5: 1513 | M5: 100
A6: 115 | B6: 585 | C6: 37.93774319 | D6: 708 | E6: 45.91439689 | F6: 147 | G6: 9.53307393 | H6: 90 | I6: 5.836575875 | J6: 12 | K6: 0.7782101167 | L6: 1542 | M6: 100
A7: 116 | B7: 597 | C7: 39.01960784 | D7: 681 | E7: 44.50980392 | F7: 142 | G7: 9.281045752 | H7: 95 | I7: 6.209150327 | J7: 15 | K7: 0.9803921569 | L7: 1530 | M7: 100
A8: 117 | B8: 552 | C8: 38.52058618 | D8: 645 | E8: 45.01046755 | F8: 137 | G8: 9.560362875 | H8: 83 | I8: 5.792044662 | J8: 16 | K8: 1.11653873 | L8: 1433 | M8: 100
A9: 118 | B9: 526 | C9: 36.65505226 | D9: 673 | E9: 46.8989547 | F9: 130 | G9: 9.059233449 | H9: 94 | I9: 6.550522648 | J9: 12 | K9: 0.8362369338 | L9: 1435 | M9: 100
A10: 119 | B10: 549 | C10: 35.53398058 | D10: 728 | E10: 47.1197411 | F10: 127 | G10: 8.220064725 | H10: 108 | I10: 6.990291262 | J10: 33 | K10: 2.13592233 | L10: 1545 | M10: 100
A11: 121 | B11: 230 | C11: 16.57060519 | D11: 352 | E11: 25.36023055 | F11: 307 | G11: 22.11815562 | H11: 230 | I11: 16.57060519 | J11: 269 | K11: 19.38040346 | L11: 1388 | M11: 100
A12: 122 | B12: 230 | C12: 16.1971831 | D12: 370 | E12: 26.05633803 | F12: 311 | G12: 21.90140845 | H12: 276 | I12: 19.43661972 | J12: 233 | K12: 16.4084507 | L12: 1420 | M12: 100
A13: 123 | B13: 215 | C13: 16.47509579 | D13: 339 | E13: 25.97701149 | F13: 294 | G13: 22.52873563 | H13: 295 | I13: 22.60536398 | J13: 162 | K13: 12.4137931 | L13: 1305 | M13: 100
A14: 124 | B14: 206 | C14: 16.36219222 | D14: 326 | E14: 25.89356632 | F14: 303 | G14: 24.06671962 | H14: 313 | I14: 24.86100079 | J14: 111 | K14: 8.816521048 | L14: 1259 | M14: 100
A15: 125 | B15: 181 | C15: 14.53815261 | D15: 312 | E15: 25.06024096 | F15: 316 | G15: 25.3815261 | H15: 320 | I15: 25.70281124 | J15: 116 | K15: 9.317269076 | L15: 1245 | M15: 100
A16: 126 | B16: 163 | C16: 13.74367622 | D16: 289 | E16: 24.36762226 | F16: 292 | G16: 24.62057336 | H16: 310 | I16: 26.13827993 | J16: 132 | K16: 11.12984823 | L16: 1186 | M16: 100
A17: 127 | B17: 169 | C17: 14.09507923 | D17: 279 | E17: 23.26939116 | F17: 294 | G17: 24.52043369 | H17: 328 | I17: 27.35613011 | J17: 129 | K17: 10.7589658 | L17: 1199 | M17: 100
A18: 128 | B18: 181 | C18: 14.48 | D18: 289 | E18: 23.12 | F18: 312 | G18: 24.96 | H18: 336 | I18: 26.88 | J18: 132 | K18: 10.56 | L18: 1250 | M18: 100
A19: 129 | B19: 193 | C19: 14.9034749 | D19: 321 | E19: 24.78764479 | F19: 325 | G19: 25.0965251 | H19: 300 | I19: 23.16602317 | J19: 156 | K19: 12.04633205 | L19: 1295 | M19: 100
A20: 131 | B20: 368 | C20: 13.6802974 | D20: 187 | E20: 6.951672862 | F20: 658 | G20: 24.46096654 | H20: 1296 | I20: 48.17843866 | J20: 181 | K20: 6.728624535 | L20: 2690 | M20: 100
A21: 132 | B21: 423 | C21: 15.06410256 | D21: 215 | E21: 7.656695157 | F21: 672 | G21: 23.93162393 | H21: 1344 | I21: 47.86324786 | J21: 154 | K21: 5.484330484 | L21: 2808 | M21: 100
A22: 133 | B22: 482 | C22: 16.48990763 | D22: 263 | E22: 8.9976052 | F22: 679 | G22: 23.22955867 | H22: 1373 | I22: 46.97228874 | J22: 126 | K22: 4.310639754 | L22: 2923 | M22: 100
A23: 134 | B23: 537 | C23: 17.9 | D23: 266 | E23: 8.866666667 | F23: 724 | G23: 24.13333333 | H23: 1355 | I23: 45.16666667 | J23: 118 | K23: 3.933333333 | L23: 3000 | M23: 100
A24: 135 | B24: 578 | C24: 19.50067476 | D24: 255 | E24: 8.603238866 | F24: 705 | G24: 23.7854251 | H24: 1296 | I24: 43.72469636 | J24: 130 | K24: 4.385964912 | L24: 2964 | M24: 100
A25: 136 | B25: 547 | C25: 19.60573477 | D25: 246 | E25: 8.817204301 | F25: 641 | G25: 22.97491039 | H25: 1212 | I25: 43.44086022 | J25: 144 | K25: 5.161290323 | L25: 2790 | M25: 100
A26: 137 | B26: 489 | C26: 17.97794118 | D26: 216 | E26: 7.941176471 | F26: 636 | G26: 23.38235294 | H26: 1215 | I26: 44.66911765 | J26: 164 | K26: 6.029411765 | L26: 2720 | M26: 100
A27: 138 | B27: 507 | C27: 18.83358098 | D27: 211 | E27: 7.838038633 | F27: 629 | G27: 23.36552749 | H27: 1169 | I27: 43.42496285 | J27: 176 | K27: 6.537890045 | L27: 2692 | M27: 100
A28: 139 | B28: 605 | C28: 21.43869596 | D28: 236 | E28: 8.362863218 | F28: 641 | G28: 22.71438696 | H28: 1197 | I28: 42.41672573 | J28: 143 | K28: 5.067328136 | L28: 2822 | M28: 100
A29: 141 | B29: 1128 | C29: 20.24407753 | D29: 1214 | E29: 21.78750897 | F29: 1084 | G29: 19.45441493 | H29: 1638 | I29: 29.39698492 | J29: 508 | K29: 9.11701364 | L29: 5572 | M29: 100
A30: 142 | B30: 1205 | C30: 21.08855443 | D30: 1271 | E30: 22.24361218 | F30: 1087 | G30: 19.02345117 | H30: 1727 | I30: 30.2240112 | J30: 424 | K30: 7.420371019 | L30: 5714 | M30: 100
A31: 143 | B31: 1269 | C31: 22.01978136 | D31: 1303 | E31: 22.60975187 | F31: 1106 | G31: 19.19139337 | H31: 1765 | I31: 30.62640986 | J31: 320 | K31: 5.552663543 | L31: 5763 | M31: 100
A32: 144 | B32: 1304 | C32: 22.59182259 | D32: 1291 | E32: 22.36659737 | F32: 1169 | G32: 20.25294525 | H32: 1759 | I32: 30.47470547 | J32: 249 | K32: 4.313929314 | L32: 5772 | M32: 100
A33: 145 | B33: 1344 | C33: 23.36984872 | D33: 1275 | E33: 22.17005738 | F33: 1168 | G33: 20.30951139 | H33: 1706 | I33: 29.66440619 | J33: 258 | K33: 4.486176317 | L33: 5751 | M33: 100
A34: 146 | B34: 1307 | C34: 23.73774065 | D34: 1216 | E34: 22.08499818 | F34: 1075 | G34: 19.52415547 | H34: 1617 | I34: 29.36796222 | J34: 291 | K34: 5.28514348 | L34: 5506 | M34: 100
A35: 147 | B35: 1210 | C35: 22.6083707 | D35: 1140 | E35: 21.30044843 | F35: 1067 | G35: 19.93647235 | H35: 1626 | I35: 30.38116592 | J35: 309 | K35: 5.773542601 | L35: 5352 | M35: 100
A36: 148 | B36: 1214 | C36: 22.57764553 | D36: 1173 | E36: 21.81513855 | F36: 1071 | G36: 19.91816998 | H36: 1599 | I36: 29.73777199 | J36: 320 | K36: 5.951273945 | L36: 5377 | M36: 100
A37: 149 | B37: 1347 | C37: 23.79018015 | D37: 1285 | E37: 22.69516072 | F37: 1093 | G37: 19.30413282 | H37: 1605 | I37: 28.3468739 | J37: 332 | K37: 5.86365242 | L37: 5662 | M37: 100
A38: 211 | B38: 603 | C38: 36.41304348 | D38: 725 | E38: 43.78019324 | F38: 137 | G38: 8.27294686 | H38: 104 | I38: 6.280193237 | J38: 87 | K38: 5.253623188 | L38: 1656 | M38: 100
A39: 212 | B39: 651 | C39: 38.15943728 | D39: 753 | E39: 44.13833529 | F39: 141 | G39: 8.264947245 | H39: 108 | I39: 6.33059789 | J39: 53 | K39: 3.106682298 | L39: 1706 | M39: 100
A40: 213 | B40: 614 | C40: 37.50763592 | D40: 726 | E40: 44.34941967 | F40: 163 | G40: 9.957238852 | H40: 102 | I40: 6.230910202 | J40: 32 | K40: 1.954795357 | L40: 1637 | M40: 100
A41: 214 | B41: 630 | C41: 38.50855746 | D41: 716 | E41: 43.76528117 | F41: 162 | G41: 9.902200489 | H41: 107 | I41: 6.540342298 | J41: 21 | K41: 1.283618582 | L41: 1636 | M41: 100
A42: 215 | B42: 660 | C42: 39.73509934 | D42: 733 | E42: 44.13004214 | F42: 142 | G42: 8.549066827 | H42: 109 | I42: 6.56231186 | J42: 17 | K42: 1.023479831 | L42: 1661 | M42: 100
A43: 216 | B43: 666 | C43: 40.5356056 | D43: 726 | E43: 44.18746196 | F43: 127 | G43: 7.729762629 | H43: 105 | I43: 6.390748631 | J43: 19 | K43: 1.156421181 | L43: 1643 | M43: 100
A44: 217 | B44: 670 | C44: 39.95229577 | D44: 731 | E44: 43.58974359 | F44: 149 | G44: 8.884913536 | H44: 104 | I44: 6.201550388 | J44: 23 | K44: 1.37149672 | L44: 1677 | M44: 100
A45: 218 | B45: 696 | C45: 39.18918919 | D45: 817 | E45: 46.00225225 | F45: 129 | G45: 7.263513514 | H45: 112 | I45: 6.306306306 | J45: 22 | K45: 1.238738739 | L45: 1776 | M45: 100
A46: 219 | B46: 664 | C46: 38.05157593 | D46: 823 | E46: 47.16332378 | F46: 95 | G46: 5.444126074 | H46: 104 | I46: 5.959885387 | J46: 59 | K46: 3.381088825 | L46: 1745 | M46: 100
A47: 221 | B47: 263 | C47: 17.30263158 | D47: 381 | E47: 25.06578947 | F47: 362 | G47: 23.81578947 | H47: 290 | I47: 19.07894737 | J47: 224 | K47: 14.73684211 | L47: 1520 | M47: 100
A48: 222 | B48: 283 | C48: 18.82900865 | D48: 372 | E48: 24.750499 | F48: 333 | G48: 22.15568862 | H48: 319 | I48: 21.22421823 | J48: 196 | K48: 13.0405855 | L48: 1503 | M48: 100
A49: 223 | B49: 264 | C49: 18.1443299 | D49: 364 | E49: 25.01718213 | F49: 333 | G49: 22.88659794 | H49: 323 | I49: 22.19931271 | J49: 171 | K49: 11.75257732 | L49: 1455 | M49: 100
A50: 224 | B50: 232 | C50: 17.00879765 | D50: 334 | E50: 24.48680352 | F50: 333 | G50: 24.41348974 | H50: 316 | I50: 23.16715543 | J50: 149 | K50: 10.92375367 | L50: 1364 | M50: 100
A51: 225 | B51: 200 | C51: 15.3609831 | D51: 352 | E51: 27.03533026 | F51: 314 | G51: 24.11674347 | H51: 299 | I51: 22.96466974 | J51: 137 | K51: 10.52227343 | L51: 1302 | M51: 100
A52: 226 | B52: 201 | C52: 14.6394756 | D52: 395 | E52: 28.76911872 | F52: 309 | G52: 22.50546249 | H52: 324 | I52: 23.59796067 | J52: 144 | K52: 10.48798252 | L52: 1373 | M52: 100
A53: 227 | B53: 194 | C53: 14.28571429 | D53: 363 | E53: 26.73048601 | F53: 322 | G53: 23.71134021 | H53: 337 | I53: 24.81590574 | J53: 142 | K53: 10.45655376 | L53: 1358 | M53: 100
A54: 228 | B54: 182 | C54: 13.91437309 | D54: 320 | E54: 24.4648318 | F54: 319 | G54: 24.3883792 | H54: 324 | I54: 24.7706422 | J54: 163 | K54: 12.4617737 | L54: 1308 | M54: 100
A55: 229 | B55: 217 | C55: 16.42694928 | D55: 317 | E55: 23.99697199 | F55: 304 | G55: 23.01286904 | H55: 303 | I55: 22.93716881 | J55: 180 | K55: 13.62604088 | L55: 1321 | M55: 100
A56: 231 | B56: 278 | C56: 13.20665083 | D56: 149 | E56: 7.078384798 | F56: 482 | G56: 22.89786223 | H56: 1038 | I56: 49.3111639 | J56: 158 | K56: 7.505938242 | L56: 2105 | M56: 100
A57: 232 | B57: 327 | C57: 14.75631769 | D57: 182 | E57: 8.21299639 | F57: 531 | G57: 23.96209386 | H57: 1051 | I57: 47.42779783 | J57: 125 | K57: 5.640794224 | L57: 2216 | M57: 100
A58: 233 | B58: 336 | C58: 14.73038141 | D58: 195 | E58: 8.548882069 | F58: 555 | G58: 24.33143358 | H58: 1091 | I58: 47.82989917 | J58: 104 | K58: 4.55940377 | L58: 2281 | M58: 100
A59: 234 | B59: 347 | C59: 14.6475306 | D59: 209 | E59: 8.822287885 | F59: 568 | G59: 23.97636133 | H59: 1146 | I59: 48.37484171 | J59: 99 | K59: 4.178978472 | L59: 2369 | M59: 100
A60: 235 | B60: 376 | C60: 16.36917719 | D60: 210 | E60: 9.142359599 | F60: 527 | G60: 22.94296909 | H60: 1077 | I60: 46.88724423 | J60: 107 | K60: 4.658249891 | L60: 2297 | M60: 100
A61: 236 | B61: 376 | C61: 16.92169217 | D61: 179 | E61: 8.055805581 | F61: 483 | G61: 21.73717372 | H61: 1057 | I61: 47.56975698 | J61: 127 | K61: 5.715571557 | L61: 2222 | M61: 100
A62: 237 | B62: 379 | C62: 16.63010092 | D62: 183 | E62: 8.029837648 | F62: 501 | G62: 21.98332602 | H62: 1067 | I62: 46.81878017 | J62: 149 | K62: 6.537955244 | L62: 2279 | M62: 100
A63: 238 | B63: 406 | C63: 18.125 | D63: 175 | E63: 7.8125 | F63: 505 | G63: 22.54464286 | H63: 1002 | I63: 44.73214286 | J63: 152 | K63: 6.785714286 | L63: 2240 | M63: 100
A64: 239 | B64: 416 | C64: 18.1342633 | D64: 176 | E64: 7.672188317 | F64: 504 | G64: 21.97035745 | H64: 1048 | I64: 45.68439407 | J64: 150 | K64: 6.538796861 | L64: 2294 | M64: 100
A65: 241 | B65: 1144 | C65: 21.66256391 | D65: 1255 | E65: 23.76443855 | F65: 981 | G65: 18.57602727 | H65: 1432 | I65: 27.1160765 | J65: 469 | K65: 8.88089377 | L65: 5281 | M65: 100
A66: 242 | B66: 1261 | C66: 23.24423963 | D66: 1307 | E66: 24.0921659 | F66: 1005 | G66: 18.52534562 | H66: 1478 | I66: 27.24423963 | J66: 374 | K66: 6.894009217 | L66: 5425 | M66: 100
A67: 243 | B67: 1214 | C67: 22.59445375 | D67: 1285 | E67: 23.91587567 | F67: 1051 | G67: 19.5607668 | H67: 1516 | I67: 28.21514982 | J67: 307 | K67: 5.713753955 | L67: 5373 | M67: 100
A68: 244 | B68: 1209 | C68: 22.51815981 | D68: 1259 | E68: 23.44943192 | F68: 1063 | G68: 19.79884522 | H68: 1569 | I68: 29.22331905 | J68: 269 | K68: 5.010243993 | L68: 5369 | M68: 100
A69: 245 | B69: 1236 | C69: 23.49809886 | D69: 1295 | E69: 24.61977186 | F69: 983 | G69: 18.68821293 | H69: 1485 | I69: 28.23193916 | J69: 261 | K69: 4.961977186 | L69: 5260 | M69: 100
A70: 246 | B70: 1243 | C70: 23.73043146 | D70: 1300 | E70: 24.81863307 | F70: 919 | G70: 17.54486445 | H70: 1486 | I70: 28.36960672 | J70: 290 | K70: 5.536464299 | L70: 5238 | M70: 100
A71: 247 | B71: 1243 | C71: 23.39104253 | D71: 1277 | E71: 24.03086187 | F71: 972 | G71: 18.29130598 | H71: 1508 | I71: 28.37786978 | J71: 314 | K71: 5.908919834 | L71: 5314 | M71: 100
A72: 248 | B72: 1284 | C72: 24.11720511 | D72: 1312 | E72: 24.64312547 | F72: 953 | G72: 17.90007513 | H72: 1438 | I72: 27.00976709 | J72: 337 | K72: 6.329827198 | L72: 5324 | M72: 100
A73: 249 | B73: 1297 | C73: 24.19776119 | D73: 1316 | E73: 24.55223881 | F73: 903 | G73: 16.84701493 | H73: 1455 | I73: 27.14552239 | J73: 389 | K73: 7.257462687 | L73: 5360 | M73: 100
A74: 311 | B74: 663 | C74: 39.96383363 | D74: 715 | E74: 43.09825196 | F74: 118 | G74: 7.112718505 | H74: 81 | I74: 4.882459313 | J74: 82 | K74: 4.942736588 | L74: 1659 | M74: 100
A75: 312 | B75: 677 | C75: 38.81880734 | D75: 773 | E75: 44.3233945 | F75: 128 | G75: 7.339449541 | H75: 97 | I75: 5.561926606 | J75: 69 | K75: 3.956422018 | L75: 1744 | M75: 100
A76: 313 | B76: 687 | C76: 39.18996007 | D76: 759 | E76: 43.29720479 | F76: 159 | G76: 9.070165431 | H76: 97 | I76: 5.533371363 | J76: 51 | K76: 2.909298346 | L76: 1753 | M76: 100
A77: 314 | B77: 718 | C77: 41.02857143 | D77: 751 | E77: 42.91428571 | F77: 154 | G77: 8.8 | H77: 90 | I77: 5.142857143 | J77: 37 | K77: 2.114285714 | L77: 1750 | M77: 100
A78: 315 | B78: 710 | C78: 40.36384309 | D78: 799 | E78: 45.4235361 | F78: 122 | G78: 6.935758954 | H78: 97 | I78: 5.514496873 | J78: 31 | K78: 1.76236498 | L78: 1759 | M78: 100
A79: 316 | B79: 728 | C79: 40.73866816 | D79: 799 | E79: 44.7118075 | F79: 121 | G79: 6.77112479 | H79: 115 | I79: 6.435366536 | J79: 24 | K79: 1.343033016 | L79: 1787 | M79: 100
A80: 317 | B80: 712 | C80: 40.84911073 | D80: 772 | E80: 44.29145152 | F80: 138 | G80: 7.917383821 | H80: 100 | I80: 5.737234653 | J80: 21 | K80: 1.204819277 | L80: 1743 | M80: 100
A81: 318 | B81: 739 | C81: 41.42376682 | D81: 807 | E81: 45.23542601 | F81: 137 | G81: 7.679372197 | H81: 84 | I81: 4.708520179 | J81: 17 | K81: 0.9529147982 | L81: 1784 | M81: 100
A82: 319 | B82: 733 | C82: 40.9268565 | D82: 799 | E82: 44.61194863 | F82: 139 | G82: 7.761027359 | H82: 76 | I82: 4.243439419 | J82: 44 | K82: 2.456728085 | L82: 1791 | M82: 100
A83: 321 | B83: 262 | C83: 18.03165864 | D83: 387 | E83: 26.63454921 | F83: 344 | G83: 23.67515485 | H83: 259 | I83: 17.82518926 | J83: 201 | K83: 13.83344804 | L83: 1453 | M83: 100
A84: 322 | B84: 219 | C84: 16.35548917 | D84: 352 | E84: 26.28827483 | F84: 311 | G84: 23.22628827 | H84: 294 | I84: 21.95668409 | J84: 163 | K84: 12.17326363 | L84: 1339 | M84: 100
A85: 323 | B85: 225 | C85: 17.13632902 | D85: 341 | E85: 25.97105864 | F85: 304 | G85: 23.15308454 | H85: 292 | I85: 22.23914699 | J85: 151 | K85: 11.50038081 | L85: 1313 | M85: 100
A86: 324 | B86: 219 | C86: 16.19822485 | D86: 358 | E86: 26.47928994 | F86: 344 | G86: 25.44378698 | H86: 291 | I86: 21.52366864 | J86: 140 | K86: 10.35502959 | L86: 1352 | M86: 100
A87: 325 | B87: 200 | C87: 14.54545455 | D87: 361 | E87: 26.25454545 | F87: 376 | G87: 27.34545455 | H87: 295 | I87: 21.45454545 | J87: 143 | K87: 10.4 | L87: 1375 | M87: 100
A88: 326 | B88: 209 | C88: 15.48148148 | D88: 347 | E88: 25.7037037 | F88: 349 | G88: 25.85185185 | H88: 301 | I88: 22.2962963 | J88: 144 | K88: 10.66666667 | L88: 1350 | M88: 100
A89: 327 | B89: 228 | C89: 16.88888889 | D89: 334 | E89: 24.74074074 | F89: 342 | G89: 25.33333333 | H89: 310 | I89: 22.96296296 | J89: 136 | K89: 10.07407407 | L89: 1350 | M89: 100
A90: 328 | B90: 210 | C90: 15.33966399 | D90: 348 | E90: 25.42001461 | F90: 364 | G90: 26.58875091 | H90: 300 | I90: 21.9138057 | J90: 147 | K90: 10.73776479 | L90: 1369 | M90: 100
A91: 329 | B91: 203 | C91: 14.31593794 | D91: 366 | E91: 25.81100141 | F91: 380 | G91: 26.79830748 | H91: 298 | I91: 21.01551481 | J91: 171 | K91: 12.05923836 | L91: 1418 | M91: 100
A92: 331 | B92: 207 | C92: 13.2183908 | D92: 117 | E92: 7.471264368 | F92: 373 | G92: 23.81864623 | H92: 745 | I92: 47.5734355 | J92: 124 | K92: 7.918263091 | L92: 1566 | M92: 100
A93: 332 | B93: 266 | C93: 15.59202814 | D93: 113 | E93: 6.623681125 | F93: 386 | G93: 22.62602579 | H93: 851 | I93: 49.88276671 | J93: 90 | K93: 5.275498242 | L93: 1706 | M93: 100
A94: 333 | B94: 286 | C94: 16.41791045 | D94: 121 | E94: 6.946039036 | F94: 392 | G94: 22.50287026 | H94: 871 | I94: 50 | J94: 72 | K94: 4.133180253 | L94: 1742 | M94: 100
A95: 334 | B95: 294 | C95: 16.72354949 | D95: 135 | E95: 7.679180887 | F95: 402 | G95: 22.8668942 | H95: 858 | I95: 48.80546075 | J95: 69 | K95: 3.924914676 | L95: 1758 | M95: 100
A96: 335 | B96: 307 | C96: 17.03662597 | D96: 165 | E96: 9.156492786 | F96: 405 | G96: 22.47502775 | H96: 828 | I96: 45.94894562 | J96: 97 | K96: 5.38290788 | L96: 1802 | M96: 100
A97: 336 | B97: 300 | C97: 17.39130435 | D97: 153 | E97: 8.869565217 | F97: 378 | G97: 21.91304348 | H97: 786 | I97: 45.56521739 | J97: 108 | K97: 6.260869565 | L97: 1725 | M97: 100
A98: 337 | B98: 293 | C98: 17.22516167 | D98: 128 | E98: 7.524985303 | F98: 339 | G98: 19.92945326 | H98: 830 | I98: 48.79482657 | J98: 111 | K98: 6.525573192 | L98: 1701 | M98: 100
A99: 338 | B99: 287 | C99: 16.54178674 | D99: 119 | E99: 6.858789625 | F99: 343 | G99: 19.76945245 | H99: 864 | I99: 49.79827089 | J99: 122 | K99: 7.031700288 | L99: 1735 | M99: 100
A100: 339 | B100: 308 | C100: 17.08264004 | D100: 111 | E100: 6.15640599 | F100: 378 | G100: 20.96505824 | H100: 895 | I100: 49.63948974 | J100: 111 | K100: 6.15640599 | L100: 1803 | M100: 100
A101: 341 | B101: 1132 | C101: 24.19837537 | D101: 1219 | E101: 26.05814451 | F101: 835 | G101: 17.84950834 | H101: 1085 | I101: 23.19367251 | J101: 407 | K101: 8.700299273 | L101: 4678 | M101: 100
A102: 342 | B102: 1162 | C102: 24.26393819 | D102: 1238 | E102: 25.85090833 | F102: 825 | G102: 17.22697849 | H102: 1242 | I102: 25.93443308 | J102: 322 | K102: 6.723741909 | L102: 4789 | M102: 100
A103: 343 | B103: 1198 | C103: 24.91680532 | D103: 1221 | E103: 25.39517471 | F103: 855 | G103: 17.7828619 | H103: 1260 | I103: 26.2063228 | J103: 274 | K103: 5.698835275 | L103: 4808 | M103: 100
A104: 344 | B104: 1231 | C104: 25.32921811 | D104: 1244 | E104: 25.59670782 | F104: 900 | G104: 18.51851852 | H104: 1239 | I104: 25.49382716 | J104: 246 | K104: 5.061728395 | L104: 4860 | M104: 100
A105: 345 | B105: 1217 | C105: 24.65559157 | D105: 1325 | E105: 26.84359806 | F105: 903 | G105: 18.29416532 | H105: 1220 | I105: 24.71636953 | J105: 271 | K105: 5.490275527 | L105: 4936 | M105: 100
A106: 346 | B106: 1237 | C106: 25.44220485 | D106: 1299 | E106: 26.71740025 | F106: 848 | G106: 17.44138215 | H106: 1202 | I106: 24.72233649 | J106: 276 | K106: 5.676676265 | L106: 4862 | M106: 100
A107: 347 | B107: 1233 | C107: 25.71964956 | D107: 1234 | E107: 25.74050897 | F107: 819 | G107: 17.08385482 | H107: 1240 | I107: 25.86566542 | J107: 268 | K107: 5.590321235 | L107: 4794 | M107: 100
A108: 348 | B108: 1236 | C108: 25.28641571 | D108: 1274 | E108: 26.06382979 | F108: 844 | G108: 17.26677578 | H108: 1248 | I108: 25.53191489 | J108: 286 | K108: 5.85106383 | L108: 4888 | M108: 100
A109: 349 | B109: 1244 | C109: 24.82043097 | D109: 1276 | E109: 25.45889864 | F109: 897 | G109: 17.89704709 | H109: 1269 | I109: 25.31923384 | J109: 326 | K109: 6.504389465 | L109: 5012 | M109: 100
A110: 411 | B110: 677 | C110: 39.54439252 | D110: 773 | E110: 45.15186916 | F110: 113 | G110: 6.60046729 | H110: 69 | I110: 4.030373832 | J110: 80 | K110: 4.672897196 | L110: 1712 | M110: 100
A111: 412 | B111: 709 | C111: 40.14722537 | D111: 795 | E111: 45.01698754 | F111: 113 | G111: 6.398640997 | H111: 86 | I111: 4.869762174 | J111: 63 | K111: 3.567383918 | L111: 1766 | M111: 100
A112: 413 | B112: 718 | C112: 39.75636766 | D112: 811 | E112: 44.90586932 | F112: 133 | G112: 7.364341085 | H112: 91 | I112: 5.03875969 | J112: 53 | K112: 2.934662237 | L112: 1806 | M112: 100
A113: 414 | B113: 777 | C113: 42.38952537 | D113: 817 | E113: 44.57174032 | F113: 127 | G113: 6.92853246 | H113: 82 | I113: 4.473540644 | J113: 30 | K113: 1.636661211 | L113: 1833 | M113: 100
A114: 415 | B114: 771 | C114: 43.43661972 | D114: 790 | E114: 44.50704225 | F114: 121 | G114: 6.816901408 | H114: 74 | I114: 4.169014085 | J114: 19 | K114: 1.070422535 | L114: 1775 | M114: 100
A115: 416 | B115: 762 | C115: 41.86813187 | D115: 825 | E115: 45.32967033 | F115: 127 | G115: 6.978021978 | H115: 78 | I115: 4.285714286 | J115: 28 | K115: 1.538461538 | L115: 1820 | M115: 100
A116: 417 | B116: 775 | C116: 42.25736096 | D116: 821 | E116: 44.7655398 | F116: 135 | G116: 7.360959651 | H116: 80 | I116: 4.362050164 | J116: 23 | K116: 1.254089422 | L116: 1834 | M116: 100
A117: 418 | B117: 772 | C117: 42.1167485 | D117: 826 | E117: 45.06273868 | F117: 131 | G117: 7.146753955 | H117: 85 | I117: 4.637206765 | J117: 19 | K117: 1.0365521 | L117: 1833 | M117: 100
A118: 419 | B118: 755 | C118: 40.7227616 | D118: 846 | E118: 45.63106796 | F118: 119 | G118: 6.418554477 | H118: 81 | I118: 4.368932039 | J118: 53 | K118: 2.858683927 | L118: 1854 | M118: 100
A119: 421 | B119: 273 | C119: 19.30693069 | D119: 350 | E119: 24.75247525 | F119: 360 | G119: 25.45968883 | H119: 258 | I119: 18.24611033 | J119: 173 | K119: 12.23479491 | L119: 1414 | M119: 100
A120: 422 | B120: 288 | C120: 19.7260274 | D120: 375 | E120: 25.68493151 | F120: 365 | G120: 25 | H120: 277 | I120: 18.97260274 | J120: 155 | K120: 10.61643836 | L120: 1460 | M120: 100
A121: 423 | B121: 262 | C121: 18.68758916 | D121: 384 | E121: 27.38944365 | F121: 350 | G121: 24.96433666 | H121: 277 | I121: 19.7574893 | J121: 129 | K121: 9.201141227 | L121: 1402 | M121: 100
A122: 424 | B122: 246 | C122: 18.03519062 | D122: 378 | E122: 27.71260997 | F122: 339 | G122: 24.85337243 | H122: 288 | I122: 21.1143695 | J122: 113 | K122: 8.284457478 | L122: 1364 | M122: 100
A123: 425 | B123: 220 | C123: 15.96516691 | D123: 378 | E123: 27.43105951 | F123: 359 | G123: 26.05224964 | H123: 299 | I123: 21.69811321 | J123: 122 | K123: 8.85341074 | L123: 1378 | M123: 100
A124: 426 | B124: 207 | C124: 15.70561457 | D124: 338 | E124: 25.64491654 | F124: 340 | G124: 25.79666161 | H124: 294 | I124: 22.30652504 | J124: 139 | K124: 10.54628225 | L124: 1318 | M124: 100
A125: 427 | B125: 225 | C125: 16.9939577 | D125: 333 | E125: 25.1510574 | F125: 332 | G125: 25.0755287 | H125: 300 | I125: 22.65861027 | J125: 134 | K125: 10.12084592 | L125: 1324 | M125: 100
A126: 428 | B126: 259 | C126: 18.52646638 | D126: 333 | E126: 23.81974249 | F126: 345 | G126: 24.67811159 | H126: 326 | I126: 23.31902718 | J126: 135 | K126: 9.656652361 | L126: 1398 | M126: 100
A127: 429 | B127: 278 | C127: 19.63276836 | D127: 335 | E127: 23.65819209 | F127: 342 | G127: 24.15254237 | H127: 326 | I127: 23.02259887 | J127: 135 | K127: 9.533898305 | L127: 1416 | M127: 100
A128: 431 | B128: 164 | C128: 12.94396212 | D128: 99 | E128: 7.813733228 | F128: 267 | G128: 21.07340174 | H128: 666 | I128: 52.56511444 | J128: 71 | K128: 5.603788477 | L128: 1267 | M128: 100
A129: 432 | B129: 202 | C129: 14.77688369 | D129: 106 | E129: 7.754206291 | F129: 310 | G129: 22.67739576 | H129: 683 | I129: 49.96342356 | J129: 66 | K129: 4.82809071 | L129: 1367 | M129: 100
A130: 433 | B130: 228 | C130: 16.6180758 | D130: 124 | E130: 9.037900875 | F130: 280 | G130: 20.40816327 | H130: 671 | I130: 48.90670554 | J130: 69 | K130: 5.029154519 | L130: 1372 | M130: 100
A131: 434 | B131: 239 | C131: 16.73669468 | D131: 137 | E131: 9.593837535 | F131: 285 | G131: 19.95798319 | H131: 698 | I131: 48.87955182 | J131: 69 | K131: 4.831932773 | L131: 1428 | M131: 100
A132: 435 | B132: 232 | C132: 16.0887656 | D132: 133 | E132: 9.223300971 | F132: 309 | G132: 21.42857143 | H132: 693 | I132: 48.05825243 | J132: 75 | K132: 5.20110957 | L132: 1442 | M132: 100
A133: 436 | B133: 233 | C133: 17.18289086 | D133: 122 | E133: 8.997050147 | F133: 282 | G133: 20.79646018 | H133: 641 | I133: 47.27138643 | J133: 78 | K133: 5.752212389 | L133: 1356 | M133: 100
A134: 437 | B134: 239 | C134: 17.18188354 | D134: 109 | E134: 7.836089145 | F134: 286 | G134: 20.56074766 | H134: 649 | I134: 46.65708124 | J134: 108 | K134: 7.764198418 | L134: 1391 | M134: 100
A135: 438 | B135: 242 | C135: 16.59807956 | D135: 98 | E135: 6.721536351 | F135: 300 | G135: 20.57613169 | H135: 700 | I135: 48.01097394 | J135: 118 | K135: 8.093278464 | L135: 1458 | M135: 100
A136: 439 | B136: 255 | C136: 17.27642276 | D136: 92 | E136: 6.233062331 | F136: 304 | G136: 20.59620596 | H136: 717 | I136: 48.57723577 | J136: 108 | K136: 7.317073171 | L136: 1476 | M136: 100
A137: 441 | B137: 1114 | C137: 25.35852493 | D137: 1222 | E137: 27.81698156 | F137: 740 | G137: 16.84498065 | H137: 993 | I137: 22.60414295 | J137: 324 | K137: 7.375369907 | L137: 4393 | M137: 100
A138: 442 | B138: 1199 | C138: 26.1049423 | D138: 1276 | E138: 27.78140649 | F138: 788 | G138: 17.15654256 | H138: 1046 | I138: 22.7737862 | J138: 284 | K138: 6.183322447 | L138: 4593 | M138: 100
A139: 443 | B139: 1208 | C139: 26.37554585 | D139: 1319 | E139: 28.79912664 | F139: 763 | G139: 16.65938865 | H139: 1039 | I139: 22.68558952 | J139: 251 | K139: 5.480349345 | L139: 4580 | M139: 100
A140: 444 | B140: 1262 | C140: 27.28648649 | D140: 1332 | E140: 28.8 | F140: 751 | G140: 16.23783784 | H140: 1068 | I140: 23.09189189 | J140: 212 | K140: 4.583783784 | L140: 4625 | M140: 100
A141: 445 | B141: 1223 | C141: 26.61588683 | D141: 1301 | E141: 28.31338411 | F141: 789 | G141: 17.17083787 | H141: 1066 | I141: 23.19912949 | J141: 216 | K141: 4.700761697 | L141: 4595 | M141: 100
A142: 446 | B142: 1202 | C142: 26.74677348 | D142: 1285 | E142: 28.59368046 | F142: 749 | G142: 16.66666667 | H142: 1013 | I142: 22.541166 | J142: 245 | K142: 5.451713396 | L142: 4494 | M142: 100
A143: 447 | B143: 1239 | C143: 27.23675533 | D143: 1263 | E143: 27.76434381 | F143: 753 | G143: 16.55308859 | H143: 1029 | I143: 22.62035612 | J143: 265 | K143: 5.825456144 | L143: 4549 | M143: 100
A144: 448 | B144: 1273 | C144: 27.14864577 | D144: 1257 | E144: 26.80742163 | F144: 776 | G144: 16.54937087 | H144: 1111 | I144: 23.69375133 | J144: 272 | K144: 5.800810407 | L144: 4689 | M144: 100
A145: 449 | B145: 1288 | C145: 27.13864307 | D145: 1273 | E145: 26.82258744 | F145: 765 | G145: 16.11883692 | H145: 1124 | I145: 23.68310156 | J145: 296 | K145: 6.236831016 | L145: 4746 | M145: 100
A146: 511 | B146: 703 | C146: 42.04545455 | D146: 718 | E146: 42.94258373 | F146: 110 | G146: 6.578947368 | H146: 84 | I146: 5.023923445 | J146: 57 | K146: 3.409090909 | L146: 1672 | M146: 100
A147: 512 | B147: 746 | C147: 42.55561894 | D147: 746 | E147: 42.55561894 | F147: 124 | G147: 7.073588135 | H147: 80 | I147: 4.563605248 | J147: 57 | K147: 3.251568739 | L147: 1753 | M147: 100
A148: 513 | B148: 779 | C148: 43.03867403 | D148: 757 | E148: 41.82320442 | F148: 159 | G148: 8.784530387 | H148: 75 | I148: 4.143646409 | J148: 40 | K148: 2.209944751 | L148: 1810 | M148: 100
A149: 514 | B149: 786 | C149: 43.73956594 | D149: 760 | E149: 42.29271007 | F149: 152 | G149: 8.458542014 | H149: 75 | I149: 4.173622705 | J149: 24 | K149: 1.335559265 | L149: 1797 | M149: 100
A150: 515 | B150: 812 | C150: 43.93939394 | D150: 798 | E150: 43.18181818 | F150: 129 | G150: 6.980519481 | H150: 89 | I150: 4.816017316 | J150: 20 | K150: 1.082251082 | L150: 1848 | M150: 100
A151: 516 | B151: 775 | C151: 42.74682846 | D151: 783 | E151: 43.18808605 | F151: 138 | G151: 7.611693326 | H151: 98 | I151: 5.405405405 | J151: 19 | K151: 1.047986762 | L151: 1813 | M151: 100
A152: 517 | B152: 785 | C152: 41.97860963 | D152: 829 | E152: 44.3315508 | F152: 150 | G152: 8.021390374 | H152: 87 | I152: 4.652406417 | J152: 19 | K152: 1.016042781 | L152: 1870 | M152: 100
A153: 518 | B153: 815 | C153: 41.75204918 | D153: 913 | E153: 46.77254098 | F153: 130 | G153: 6.659836066 | H153: 74 | I153: 3.790983607 | J153: 20 | K153: 1.024590164 | L153: 1952 | M153: 100
A154: 519 | B154: 778 | C154: 41.89553043 | D154: 857 | E154: 46.14970382 | F154: 103 | G154: 5.546580506 | H154: 68 | I154: 3.66182014 | J154: 51 | K154: 2.746365105 | L154: 1857 | M154: 100
A155: 521 | B155: 231 | C155: 18.046875 | D155: 338 | E155: 26.40625 | F155: 303 | G155: 23.671875 | H155: 234 | I155: 18.28125 | J155: 174 | K155: 13.59375 | L155: 1280 | M155: 100
A156: 522 | B156: 237 | C156: 18.3011583 | D156: 311 | E156: 24.01544402 | F156: 315 | G156: 24.32432432 | H156: 278 | I156: 21.46718147 | J156: 154 | K156: 11.89189189 | L156: 1295 | M156: 100
A157: 523 | B157: 245 | C157: 18.53252648 | D157: 316 | E157: 23.903177 | F157: 333 | G157: 25.18910741 | H157: 297 | I157: 22.46596067 | J157: 131 | K157: 9.909228442 | L157: 1322 | M157: 100
A158: 524 | B158: 231 | C158: 17.60670732 | D158: 345 | E158: 26.29573171 | F158: 319 | G158: 24.31402439 | H158: 308 | I158: 23.47560976 | J158: 109 | K158: 8.307926829 | L158: 1312 | M158: 100
A159: 525 | B159: 220 | C159: 16.45474944 | D159: 353 | E159: 26.40239342 | F159: 335 | G159: 25.05609574 | H159: 318 | I159: 23.78459237 | J159: 111 | K159: 8.302169035 | L159: 1337 | M159: 100
A160: 526 | B160: 215 | C160: 15.75091575 | D160: 342 | E160: 25.05494505 | F160: 370 | G160: 27.10622711 | H160: 322 | I160: 23.58974359 | J160: 116 | K160: 8.498168498 | L160: 1365 | M160: 100
A161: 527 | B161: 224 | C161: 16.39824305 | D161: 345 | E161: 25.25622255 | F161: 374 | G161: 27.37920937 | H161: 304 | I161: 22.25475842 | J161: 119 | K161: 8.711566618 | L161: 1366 | M161: 100
A162: 528 | B162: 277 | C162: 19.81402003 | D162: 325 | E162: 23.24749642 | F162: 349 | G162: 24.96423462 | H162: 316 | I162: 22.6037196 | J162: 131 | K162: 9.370529328 | L162: 1398 | M162: 100
A163: 529 | B163: 302 | C163: 20.81323225 | D163: 321 | E163: 22.12267402 | F163: 350 | G163: 24.12129566 | H163: 336 | I163: 23.15644383 | J163: 142 | K163: 9.786354238 | L163: 1451 | M163: 100
A164: 531 | B164: 115 | C164: 11.7107943 | D164: 78 | E164: 7.942973523 | F164: 211 | G164: 21.48676171 | H164: 516 | I164: 52.54582485 | J164: 62 | K164: 6.313645621 | L164: 982 | M164: 100
A165: 532 | B165: 128 | C165: 12.8 | D165: 78 | E165: 7.8 | F165: 222 | G165: 22.2 | H165: 523 | I165: 52.3 | J165: 49 | K165: 4.9 | L165: 1000 | M165: 100
A166: 533 | B166: 148 | C166: 14.38289602 | D166: 101 | E166: 9.815354713 | F166: 231 | G166: 22.44897959 | H166: 508 | I166: 49.36831876 | J166: 41 | K166: 3.984450923 | L166: 1029 | M166: 100
A167: 534 | B167: 163 | C167: 15.33396049 | D167: 104 | E167: 9.783631232 | F167: 206 | G167: 19.37911571 | H167: 537 | I167: 50.51740357 | J167: 53 | K167: 4.985888993 | L167: 1063 | M167: 100
A168: 535 | B168: 215 | C168: 20.07469655 | D168: 86 | E168: 8.029878618 | F168: 191 | G168: 17.83380019 | H168: 522 | I168: 48.7394958 | J168: 57 | K168: 5.322128852 | L168: 1071 | M168: 100
A169: 536 | B169: 222 | C169: 20.42318307 | D169: 96 | E169: 8.831646734 | F169: 208 | G169: 19.13523459 | H169: 504 | I169: 46.36614535 | J169: 57 | K169: 5.243790248 | L169: 1087 | M169: 100
A170: 537 | B170: 205 | C170: 19.10531221 | D170: 94 | E170: 8.760484623 | F170: 213 | G170: 19.85088537 | H170: 466 | I170: 43.42963653 | J170: 95 | K170: 8.853681267 | L170: 1073 | M170: 100
A171: 538 | B171: 212 | C171: 18.79432624 | D171: 87 | E171: 7.712765957 | F171: 222 | G171: 19.68085106 | H171: 505 | I171: 44.76950355 | J171: 102 | K171: 9.042553191 | L171: 1128 | M171: 100
A172: 539 | B172: 224 | C172: 18.60465116 | D172: 107 | E172: 8.887043189 | F172: 247 | G172: 20.51495017 | H172: 558 | I172: 46.34551495 | J172: 68 | K172: 5.647840532 | L172: 1204 | M172: 100
A173: 541 | B173: 1049 | C173: 26.66497204 | D173: 1134 | E173: 28.82562278 | F173: 624 | G173: 15.86171835 | H173: 834 | I173: 21.19979664 | J173: 293 | K173: 7.447890188 | L173: 3934 | M173: 100
A174: 542 | B174: 1111 | C174: 27.44565217 | D174: 1135 | E174: 28.03853755 | F174: 661 | G174: 16.32905138 | H174: 881 | I174: 21.76383399 | J174: 260 | K174: 6.422924901 | L174: 4048 | M174: 100
A175: 543 | B175: 1172 | C175: 28.16630618 | D175: 1174 | E175: 28.21437155 | F175: 723 | G175: 17.37563086 | H175: 880 | I175: 21.14876232 | J175: 212 | K175: 5.094929104 | L175: 4161 | M175: 100
A176: 544 | B176: 1180 | C176: 28.28379674 | D176: 1209 | E176: 28.978907 | F176: 677 | G176: 16.22722915 | H176: 920 | I176: 22.05177373 | J176: 186 | K176: 4.458293384 | L176: 4172 | M176: 100
A177: 545 | B177: 1247 | C177: 29.29981203 | D177: 1237 | E177: 29.06484962 | F177: 655 | G177: 15.39003759 | H177: 929 | I177: 21.82800752 | J177: 188 | K177: 4.417293233 | L177: 4256 | M177: 100
A178: 546 | B178: 1212 | C178: 28.41735053 | D178: 1221 | E178: 28.62837046 | F178: 716 | G178: 16.78780774 | H178: 924 | I178: 21.66471278 | J178: 192 | K178: 4.501758499 | L178: 4265 | M178: 100
A179: 547 | B179: 1214 | C179: 28.17359016 | D179: 1268 | E179: 29.42678116 | F179: 737 | G179: 17.10373637 | H179: 857 | I179: 19.88860524 | J179: 233 | K179: 5.407287074 | L179: 4309 | M179: 100
A180: 548 | B180: 1304 | C180: 29.12014292 | D180: 1325 | E180: 29.58910228 | F180: 701 | G180: 15.65430996 | H180: 895 | I180: 19.98660116 | J180: 253 | K180: 5.64984368 | L180: 4478 | M180: 100
A181: 549 | B181: 1304 | C181: 28.90070922 | D181: 1285 | E181: 28.47960993 | F181: 700 | G181: 15.5141844 | H181: 962 | I181: 21.32092199 | J181: 261 | K181: 5.784574468 | L181: 4512 | M181: 100
A182: 611 | B182: 3176 | C182: 38.76479922 | D182: 3606 | E182: 44.01318198 | F182: 597 | G182: 7.286708166 | H182: 450 | I182: 5.492493592 | J182: 364 | K182: 4.442817039 | L182: 8193 | M182: 100
A183: 612 | B183: 3335 | C183: 39.44411591 | D183: 3753 | E183: 44.38793613 | F183: 610 | G183: 7.214665878 | H183: 478 | I183: 5.653459491 | J183: 279 | K183: 3.29982259 | L183: 8455 | M183: 100
A184: 613 | B184: 3370 | C184: 39.45673809 | D184: 3754 | E184: 43.95269875 | F184: 747 | G184: 8.746048472 | H184: 462 | I184: 5.409202669 | J184: 208 | K184: 2.435312024 | L184: 8541 | M184: 100
A185: 614 | B185: 3472 | C185: 40.70817212 | D185: 3743 | E185: 43.88556689 | F185: 737 | G185: 8.641106812 | H185: 445 | I185: 5.217493258 | J185: 132 | K185: 1.547660922 | L185: 8529 | M185: 100
A186: 615 | B186: 3538 | C186: 41.21141526 | D186: 3828 | E186: 44.58940012 | F186: 661 | G186: 7.69947583 | H186: 459 | I186: 5.346534653 | J186: 99 | K186: 1.153174141 | L186: 8585 | M186: 100
A187: 616 | B187: 3528 | C187: 41.05667404 | D187: 3814 | E187: 44.38496451 | F187: 655 | G187: 7.622483417 | H187: 491 | I187: 5.713953218 | J187: 105 | K187: 1.221924823 | L187: 8593 | M187: 100
A188: 617 | B188: 3494 | C188: 40.83206731 | D188: 3798 | E188: 44.38471427 | F188: 709 | G188: 8.285614117 | H188: 454 | I188: 5.305597756 | J188: 102 | K188: 1.192006544 | L188: 8557 | M188: 100
A189: 618 | B189: 3548 | C189: 40.41002278 | D189: 4036 | E189: 45.96810934 | F189: 657 | G189: 7.482915718 | H189: 449 | I189: 5.113895216 | J189: 90 | K189: 1.025056948 | L189: 8780 | M189: 100
A190: 619 | B190: 3479 | C190: 39.57006369 | D190: 4053 | E190: 46.09872611 | F190: 583 | G190: 6.631028207 | H190: 437 | I190: 4.970427662 | J190: 240 | K190: 2.729754322 | L190: 8792 | M190: 100
A191: 621 | B191: 1259 | C191: 17.84549965 | D191: 1808 | E191: 25.62721474 | F191: 1676 | G191: 23.75620128 | H191: 1271 | I191: 18.01559178 | J191: 1041 | K191: 14.75549256 | L191: 7055 | M191: 100
A192: 622 | B192: 1257 | C192: 17.91363831 | D192: 1780 | E192: 25.36696594 | F192: 1635 | G192: 23.30055579 | H192: 1444 | I192: 20.57859484 | J192: 901 | K192: 12.84024512 | L192: 7017 | M192: 100
A193: 623 | B193: 1211 | C193: 17.81668383 | D193: 1744 | E193: 25.6583787 | F193: 1614 | G193: 23.74577019 | H193: 1484 | I193: 21.83316169 | J193: 744 | K193: 10.94600559 | L193: 6797 | M193: 100
A194: 624 | B194: 1134 | C194: 17.05006766 | D194: 1741 | E194: 26.17651481 | F194: 1638 | G194: 24.62787551 | H194: 1516 | I194: 22.79356488 | J194: 622 | K194: 9.351977146 | L194: 6651 | M194: 100
A195: 625 | B195: 1021 | C195: 15.38345638 | D195: 1756 | E195: 26.45773693 | F195: 1700 | G195: 25.61398222 | H195: 1531 | I195: 23.06765105 | J195: 629 | K195: 9.477173422 | L195: 6637 | M195: 100
A196: 626 | B196: 995 | C196: 15.0940534 | D196: 1711 | E196: 25.95570388 | F196: 1660 | G196: 25.18203883 | H196: 1551 | I196: 23.52851942 | J196: 675 | K196: 10.23968447 | L196: 6592 | M196: 100
A197: 627 | B197: 1040 | C197: 15.76474155 | D197: 1654 | E197: 25.07200243 | F197: 1664 | G197: 25.22358648 | H197: 1579 | I197: 23.93512203 | J197: 660 | K197: 10.00454752 | L197: 6597 | M197: 100
A198: 628 | B198: 1109 | C198: 16.49561208 | D198: 1615 | E198: 24.02201398 | F198: 1689 | G198: 25.12271307 | H198: 1602 | I198: 23.82864793 | J198: 708 | K198: 10.53101294 | L198: 6723 | M198: 100
A199: 629 | B199: 1193 | C199: 17.28734966 | D199: 1660 | E199: 24.05448486 | F199: 1701 | G199: 24.64860165 | H199: 1563 | I199: 22.64889147 | J199: 784 | K199: 11.36067237 | L199: 6901 | M199: 100
A200: 631 | B200: 1132 | C200: 13.1475029 | D200: 630 | E200: 7.317073171 | F200: 1991 | G200: 23.1242741 | H200: 4261 | I200: 49.48896632 | J200: 596 | K200: 6.922183508 | L200: 8610 | M200: 100
... 17 more rows
